bitfinex-derivatives/quotes_SOLF0:USTF0_20250818
["timestamp","ask_amount","ask_price","bid_price","bid_amount"]
[1755491046026,2.89,182.39,182.38,5.4798]
[1755491048828,2.89,182.39,182.37,8.3601]
[1755491049029,2.89,182.39,182.37,5.4801]
[1755491049526,2.89,182.39,182.37,8.3601]
[1755491050236,2.89,182.39,182.38,5.4798]
[1755491050527,2.89,182.39,182.38,8.3598]
[1755491051230,2.89,182.39,182.38,5.4798]
[1755491052620,2.89,182.39,182.38,8.3598]
[1755491054235,138.65,182.42,182.39,5.4793]
[1755491054528,2.89,182.42,182.35,2.88]
[1755491054928,2.89,182.42,182.4,2.88]
[1755491055526,5.4782,182.44,182.4,5.479]
[1755491055725,2.89,182.41,182.4,5.479]
[1755491056224,2.89,182.41,182.4,8.359]
[1755491065340,2.93,182.44,182.41,3.12]
[1755491065735,4.00341643,182.43,182.4,5.479]
[1755491065936,2.93,182.42,182.4,5.479]
[1755491066136,2.93,182.41,182.4,5.479]
[1755491066641,2.93,182.41,182.4,8.599]
[1755491070044,6.94490765,182.41,182.4,8.599]
[1755491073343,4.01490765,182.41,182.4,8.599]
[1755491073544,6.94490765,182.41,182.4,8.599]
[1755491086251,7.65e-06,182.41,182.4,11.48233202]
[1755491086451,5.98352224,182.48,182.47,5.4771]
[1755491086648,2.93,182.48,182.46,3.12]
[1755491087158,2.93,182.48,182.46,8.5974]
[1755491088256,2.93,182.48,182.47,5.4771]
[1755491093763,129.31390241,182.51,182.47,5.4771]
[1755491093957,2.88,182.5,182.48,5.4768]
[1755491097369,8.3562,182.5,182.47,5.477]
[1755491097666,2.88,182.49,182.46,3.01]
[1755491098059,2.88,182.49,182.47,5.4769]
[1755491098362,4.05919376,182.48,182.47,5.4769]
[1755491098562,6.93919376,182.48,182.47,5.4769]
[1755491100260,4.05919376,182.48,182.47,5.4769]
[1755491100466,4.05919376,182.48,182.47,8.4869]
[1755491100765,2.88,182.49,182.48,8.4868]
[1755491100956,6.93904154,182.49,182.48,8.4868]
[1755491101961,6.93904154,182.49,182.48,5.4768]
[1755491106966,4.05904154,182.49,182.47,5.477]
[1755491107167,6.93904154,182.48,182.47,5.477]
[1755491107561,6.93904154,182.48,182.47,8.487]
[1755491114274,6.89804061,182.48,182.47,8.487]
[1755491122188,4.01804061,182.48,182.47,8.537]
[1755491122382,7.15804061,182.48,182.47,8.537]
[1755491128690,1.92804062,182.48,182.47,8.537]
[1755491128895,3.14,182.51,182.5,5.4762]
[1755491129192,3.14,182.51,182.5,11.41953202]
[1755491129897,3.14,182.51,182.5,8.5362]
[1755491135109,135.2,182.55,182.5,5.94333202]
[1755491135403,135.2,182.55,182.51,3.06]
[1755491135596,135.2,182.55,182.52,5.4756]
[1755491135799,135.2,182.55,182.51,3.06]
[1755491136209,3.14,182.54,182.51,8.5357]
[1755491137608,3.14,182.54,182.51,5.4757]
[1755491137800,3.14,182.54,182.52,3.06]
[1755491139301,3.14,182.54,182.51,5.4757]
[1755491139502,3.14,182.54,182.52,3.06]
[1755491139711,3.14,182.54,182.52,8.5356]
[1755491140908,4.01402321,182.53,182.52,8.5356]
[1755491141111,7.15402321,182.53,182.52,8.5356]
[1755491142309,4.01402321,182.53,182.52,8.5356]
[1755491142505,7.15402321,182.53,182.52,8.5356]
[1755491142905,7.15402321,182.53,182.51,5.4758]
[1755491143107,7.15402321,182.52,182.51,8.5358]
[1755491144204,7.15402321,182.52,182.51,5.4758]
[1755491144606,7.15402321,182.52,182.51,8.5358]
[1755491150108,4.01402321,182.52,182.51,8.5358]
[1755491150313,4.01402321,182.52,182.51,11.41913202]
[1755491150907,3.14,182.54,182.53,5.4753]
[1755491151109,7.15258269,182.54,182.53,8.5353]
[1755491151714,7.15258269,182.54,182.53,11.41863202]
[1755491152010,4.01258269,182.54,182.53,11.41863202]
[1755491154216,6.92258269,182.54,182.53,11.41863202]
[1755491162822,4.01258269,182.54,182.53,11.41863202]
[1755491163023,4.01258269,182.54,182.53,8.5353]
[1755491163222,4.01258269,182.54,182.53,11.41863202]
[1755491163831,6.92258269,182.54,182.53,11.41863202]
[1755491168334,2.91,182.54,182.53,11.41863202]
[1755491169231,6.87874304,182.54,182.53,11.41863202]
[1755491169634,2.91,182.54,182.53,11.41863202]
[1755491170431,6.87892021,182.54,182.53,11.41863202]
[1755491170634,6.87892021,182.54,182.53,8.5353]
[1755491170832,6.87892021,182.54,182.53,11.41863202]
[1755491176132,3.96892021,182.54,182.53,11.41863202]
[1755491176435,2.91,182.54,182.53,8.5353]
[1755491176636,2.91,182.54,182.53,11.41863202]
[1755491177137,6.88216065,182.54,182.53,11.41863202]
[1755491177438,2.91,182.54,182.53,11.41863202]
[1755491184439,2.89,182.55,182.54,2.94]
[1755491184640,6.84891613,182.55,182.54,5.82333202]
[1755491184943,134.86,182.6,182.59,5.4735]
[1755491185546,137.75,182.6,182.59,5.4735]
[1755491185841,2.89,182.6,182.59,5.4735]
[1755491190444,2.89,182.6,182.57,5.82333202]
[1755491190445,140.78352224,182.64,182.57,2.88333202]
[1755491190648,2.89,182.63,182.59,2.88333202]
[1755491191051,2.89,182.63,182.61,5.4726]
[1755491191349,2.89,182.63,182.53,10.9505]
[1755491191650,2.89,182.63,182.6,5.82333202]
[1755491192748,2.89,182.63,182.62,5.4726]
[1755491193046,2.89,182.66,182.62,2.88333202]
[1755491193346,2.89,182.66,182.63,5.4723]
[1755491194257,2.88333202,182.66,182.59,2.94]
[1755491194457,2.89,182.65,182.59,2.94]
[1755491194756,8.3618,182.65,182.6,5.4731]
[1755491195052,2.89,182.64,182.6,2.94]
[1755491195345,2.89,182.64,182.61,5.4729]
[1755491195549,2.89,182.64,182.61,2.94]
[1755491195750,2.89,182.64,182.6,2.88333202]
[1755491196052,2.89,182.64,182.62,2.94]
[1755491196452,2.89,182.64,182.63,5.4723]
[1755491196947,6.82225899,182.64,182.63,5.4723]
[1755491197139,3.93225899,182.64,182.62,8.4126]
[1755491197338,6.82225899,182.63,182.62,5.4726]
[1755491197851,6.82225899,182.63,182.62,8.4126]
[1755491198050,6.82225899,182.63,182.62,5.4726]
[1755491198251,2.89,182.62,182.61,5.4729]
[1755491198449,2.89,182.62,182.59,2.88333202]
[1755491198645,2.89,182.62,182.58,2.94]
[1755491199342,2.89,182.62,182.59,5.4733]
[1755491199548,2.89,182.62,182.59,8.4133]
[1755491200355,2.89,182.62,182.6,5.4732]
[1755491202052,2.89,182.62,182.6,8.4132]
[1755491202256,2.89,182.62,182.59,5.4734]
[1755491202554,2.89,182.62,182.59,8.4134]
[1755491203255,2.89,182.62,182.6,2.94]
[1755491203456,2.89,182.62,182.6,8.4131]
[1755491204658,2.89,182.62,182.6,2.94]
[1755491205457,2.89,182.62,182.6,8.4132]
[1755491205659,2.89,182.62,182.59,2.94]
[1755491205853,2.89,182.62,182.59,8.4134]
[1755491206049,2.89,182.62,182.57,2.88333202]
[1755491206253,2.89,182.62,182.6,2.94]
[1755491206756,2.89,182.62,182.6,8.4132]
[1755491206954,2.89,182.62,182.61,2.94]
[1755491207147,6.81929399,182.62,182.61,2.94]
[1755491207457,2.89,182.61,182.6,8.4132]
[1755491211858,2.89,182.64,182.61,8.4129]
[1755491212058,6.97089767,182.63,182.62,3.05]
[1755491212866,3.04,182.62,182.61,8.5229]
[1755491216769,3.04,182.62,182.61,5.4729]
[1755491217462,3.04,182.62,182.61,8.5229]
[1755491218061,3.04,182.65,182.61,5.93333202]
[1755491218257,6.97163655,182.64,182.62,5.93333202]
[1755491218462,3.04,182.64,182.63,3.05]
[1755491218662,6.97163363,182.64,182.63,3.05]
[1755491219768,6.97163363,182.64,182.62,8.5226]
[1755491219968,3.04,182.64,182.62,8.5226]
[1755491220264,3.04,182.64,182.59,2.88333202]
[1755491220467,3.04,182.62,182.59,3.05]
[1755491220668,3.04,182.62,182.6,3.05]
[1755491220868,3.04,182.62,182.61,3.05]
[1755491221071,6.97395108,182.62,182.61,3.05]
[1755491221868,3.04,182.62,182.61,3.05]
[1755491222369,3.04,182.62,182.61,8.5229]
[1755491222670,3.04,182.64,182.61,3.05]
[1755491222871,3.93471163,182.63,182.61,3.05]
[1755491223068,5.4713,182.67,182.63,5.4723]
[1755491223270,3.04,182.65,182.64,3.05]
[1755491223576,6.97499553,182.65,182.64,3.05]
[1755491224772,3.04,182.66,182.64,3.05]
[1755491225067,3.04,182.65,182.53,20.1415199]
[1755491225266,3.04,182.65,182.63,2.88333202]
[1755491225672,3.04,182.69,182.64,3.05]
[1755491225970,3.04,182.67,182.64,3.05]
[1755491226270,3.94915157,182.66,182.65,5.93333202]
[1755491226772,5.98352224,182.73,182.66,3.05]
[1755491226773,3.04,182.72,182.66,3.05]
[1755491226970,3.04,182.7,182.68,3.05]
[1755491227171,3.949011,182.69,182.67,2.88333202]
[1755491227376,3.04,182.69,182.68,3.05]
[1755491227572,3.94846359,182.69,182.67,2.88333202]
[1755491227868,6.98846359,182.68,182.67,5.93333202]
[1755491228766,6.98846359,182.68,182.67,11.40443202]
[1755491228971,6.98846359,182.68,182.67,5.93333202]
[1755491229573,6.98846359,182.68,182.67,3.05]
[1755491229770,6.98780713,182.68,182.67,3.05]
[1755491229970,3.04,182.68,182.67,8.5211]
[1755491230275,3.04,182.73,182.67,3.05]
[1755491230474,3.04,182.71,182.67,3.05]
[1755491230663,3.04,182.69,182.67,3.05]
[1755491230863,5.4694,182.73,182.68,8.35413202]
[1755491231067,3.04,182.71,182.69,3.05]
[1755491231267,6.98704591,182.7,182.69,3.05]
[1755491232372,3.04,182.69,182.67,3.05]
[1755491233072,3.04,182.69,182.67,5.93333202]
[1755491234070,3.04,182.69,182.67,11.40423202]
[1755491235476,3.04,182.69,182.67,8.5209]
[1755491237281,3.04,182.69,182.67,3.05]
[1755491238278,3.04,182.69,182.67,8.5211]
[1755491239682,3.04,182.72,182.68,3.05]
[1755491239871,3.04,182.7,182.67,5.4711]
[1755491240078,3.04,182.7,182.69,3.05]
[1755491240377,6.98366839,182.7,182.67,5.4711]
[1755491240582,3.04,182.69,182.68,3.05]
[1755491241282,3.04,182.69,182.68,8.5208]
[1755491241482,3.04,182.69,182.68,3.05]
[1755491243283,3.04,182.69,182.68,8.5208]
[1755491250587,2.9,182.76,182.68,3.06]
[1755491250781,3.94164903,182.75,182.71,2.88333202]
[1755491250987,2.9,182.73,182.72,3.06]
[1755491251189,6.84164903,182.73,182.72,8.5294]
[1755491251386,6.84164903,182.73,182.72,5.4694]
[1755491251590,2.9,182.72,182.71,3.06]
[1755491251789,6.84164903,182.72,182.71,3.06]
[1755491252192,2.9,182.72,182.71,3.06]
[1755491252788,2.9,182.72,182.71,8.5299]
[1755491253193,2.9,182.72,182.71,11.41323202]
[1755491254194,2.9,182.72,182.71,8.5299]
[1755491254394,2.9,182.72,182.71,11.41323202]
[1755491257890,134.5,182.77,182.74,5.469]
[1755491258087,2.9,182.75,182.74,8.529]
[1755491258390,6.79891419,182.75,182.74,8.529]
[1755491258805,2.9,182.75,182.74,8.529]
[1755491259105,2.9,182.75,182.74,3.06]
[1755491259297,6.799306,182.75,182.73,8.5292]
[1755491259496,2.9,182.75,182.73,8.5292]
[1755491259698,2.9,182.75,182.74,5.469]
[1755491259994,6.79890837,182.75,182.74,5.469]
[1755491260901,2.9,182.75,182.74,8.529]
[1755491261099,2.9,182.77,182.76,5.4682]
[1755491261401,2.9,182.77,182.76,8.5282]
[1755491261899,2.9,182.81,182.76,3.06]
[1755491262203,2.9,182.79,182.73,5.94333202]
[1755491262397,2.9,182.77,182.74,5.4688]
[1755491263602,2.9,182.77,182.75,5.4686]
[1755491264697,2.9,182.76,182.75,5.4686]
[1755491265399,2.9,182.76,182.75,8.5286]
[1755491268302,2.9,182.76,182.74,5.4689]
[1755491268600,2.9,182.76,182.74,3.06]
[1755491270198,2.9,182.76,182.75,5.4687]
[1755491272403,2.9,182.76,182.73,2.88333202]
[1755491272404,3.1,182.75,182.73,5.4691]
[1755491272602,3.1,182.75,182.71,3.12]
[1755491272902,3.1,182.75,182.72,3.12]
[1755491273096,3.1,182.75,182.72,6.00333202]
[1755491273293,3.1,182.75,182.74,5.469]
[1755491274000,3.1,182.75,182.73,8.5892]
[1755491277208,3.1,182.75,182.74,5.469]
[1755491281107,3.1,182.75,182.73,3.12]
[1755491281602,3.1,182.75,182.71,3.12]
[1755491281805,3.1,182.75,182.72,3.12]
[1755491282107,3.1,182.75,182.72,8.5894]
[1755491282406,3.1,182.75,182.7,6.00333202]
[1755491282602,3.1,182.75,182.63,3.12]
[1755491282809,3.90058265,182.74,182.68,2.88333202]
[1755491283002,3.1,182.72,182.68,6.00333202]
[1755491283208,3.1,182.72,182.7,5.47]
[1755491283705,3.1,182.72,182.69,8.5904]
[1755491283905,3.1,182.72,182.59,367.64]
[1755491283906,3.1,182.73,182.67,3.12]
[1755491284203,3.1,182.71,182.67,3.12]
[1755491284803,3.1,182.71,182.68,8.5907]
[1755491285004,3.1,182.71,182.68,3.12]
[1755491285207,3.1,182.71,182.68,2.88333202]
[1755491285408,3.1,182.71,182.69,8.5903]
[1755491286113,3.1,182.75,182.7,6.00333202]
[1755491286312,3.91757161,182.74,182.71,2.88333202]
[1755491286510,3.1,182.72,182.71,2.88333202]
[1755491287012,3.1,182.72,182.71,8.5899]
[1755491287612,7.01829675,182.72,182.71,8.5899]
[1755491289213,3.1,182.72,182.71,8.5899]
[1755491292115,5.4684,182.77,182.73,5.4693]
[1755491292323,3.1,182.75,182.73,5.4693]
[1755491292516,7.02036104,182.74,182.73,5.4693]
[1755491293022,7.02036104,182.74,182.71,3.12]
[1755491293023,7.02036104,182.74,182.72,5.4695]
[1755491293216,5.4685,182.76,182.72,5.4695]
[1755491293217,7.02036104,182.73,182.72,5.4695]
[1755491293418,3.1,182.72,182.7,3.12]
[1755491293718,3.1,182.72,182.71,5.4699]
[1755491294512,7.02191313,182.72,182.71,5.4699]
[1755491294918,3.1,182.71,182.7,5.4701]
[1755491295118,3.1,182.71,182.68,3.12]
[1755491295527,3.1,182.71,182.69,5.4704]
[1755491296025,3.1,182.71,182.69,8.5904]
[1755491296229,3.1,182.71,182.69,3.12]
[1755491296431,3.1,182.69,182.68,5.4707]
[1755491297132,3.1,182.69,182.67,8.5911]
[1755491297426,2.88333202,182.71,182.67,8.5911]
[1755491297427,3.1,182.68,182.67,5.4711]
[1755491298727,3.1,182.68,182.66,8.5914]
[1755491299319,3.1,182.68,182.67,5.4711]
[1755491299725,3.1,182.68,182.67,8.5911]
[1755491304130,2.98,182.72,182.7,2.9]
[1755491304322,3.91851235,182.71,182.67,4.49269242]
[1755491304527,2.98,182.71,182.68,2.9]
[1755491305737,2.98,182.71,182.7,8.3702]
[1755491305931,2.98,182.75,182.7,2.9]
[1755491306133,3.91725897,182.74,182.7,2.9]
[1755491306334,5.4686,182.76,182.7,2.9]
[1755491306335,2.98,182.72,182.7,2.9]
[1755491306538,5.4686,182.76,182.72,5.4696]
[1755491306729,3.91755982,182.75,182.72,5.4696]
[1755491306929,3.91755982,182.74,182.72,5.4696]
[1755491307130,6.89755982,182.73,182.72,5.4696]
[1755491308043,6.89755982,182.73,182.72,8.3696]
[1755491309739,6.89755982,182.73,182.72,5.4696]
[1755491310032,2.98,182.73,182.72,5.4696]
[1755491310440,2.98,182.73,182.72,8.3696]
[1755491311341,5.468,182.78,182.73,5.4691]
[1755491311638,2.98,182.76,182.71,2.9]
[1755491311939,2.98,182.74,182.71,2.9]
[1755491312645,2.98,182.74,182.73,5.4693]
[1755491312840,2.98,182.74,182.73,8.3693]
[1755491313843,2.98,182.78,182.7,4.49269242]
[1755491314047,2.98,182.76,182.71,2.9]
[1755491314244,2.98,182.79,182.71,2.9]
[1755491314542,2.98,182.77,182.75,5.4686]
[1755491314742,6.89843935,182.76,182.75,5.4686]
[1755491317039,2.98,182.75,182.74,5.4689]
[1755491317234,6.89843935,182.75,182.74,5.4689]
[1755491318246,6.89843935,182.75,182.74,8.3689]
[1755491318444,2.98,182.75,182.74,8.3689]
[1755491321144,2.98,182.75,182.74,5.4689]
[1755491321344,2.98,182.75,182.74,8.3689]
[1755491324650,8.33996173,182.8,182.75,5.4685]
[1755491324850,2.98,182.78,182.74,5.77266173]
[1755491325051,6.89212975,182.77,182.75,2.9]
[1755491325239,6.89212975,182.77,182.76,5.4684]
[1755491325240,2.98,182.77,182.76,5.4684]
[1755491325444,2.98,182.77,182.76,8.3684]
[1755491326050,2.98,182.81,182.78,5.4677]
[1755491326247,3.91092179,182.8,182.78,5.4677]
[1755491326444,6.89092179,182.79,182.78,5.4677]
[1755491327753,2.98,182.78,182.77,5.468]
[1755491332652,2.98,182.78,182.77,8.438]
[1755491338560,0.95235489,182.86,182.77,2.87266173]
[1755491338758,3.14,182.84,182.77,2.87266173]
[1755491338956,3.14,182.82,182.77,2.87266173]
[1755491339157,3.14,182.8,182.77,2.87266173]
[1755491339358,3.14,182.8,182.78,5.4676]
[1755491339658,3.14,182.8,182.75,5.84266173]
[1755491339859,3.14,182.78,182.76,2.97]
[1755491340356,3.14,182.78,182.73,2.87266173]
[1755491340561,3.14,182.78,182.74,2.97]
[1755491340762,3.14,182.78,182.76,8.4384]
[1755491341060,3.14,182.78,182.76,5.4684]
[1755491341658,3.14,182.78,182.77,5.4681]
[1755491343566,3.14,182.8,182.77,5.4681]
[1755491343866,3.14,182.78,182.77,5.4681]
[1755491344362,7.04671831,182.78,182.77,5.4681]
[1755491344558,3.14,182.78,182.77,5.4681]
[1755491348365,7.053054,182.78,182.77,5.4681]
[1755491354372,7.053054,182.78,182.77,8.4381]
[1755491356572,7.053054,182.78,182.77,5.4681]
[1755491357570,7.053054,182.78,182.77,8.4381]
[1755491361967,3.913054,182.78,182.77,8.4381]
[1755491362870,3.14,182.79,182.78,5.4678]
[1755491363069,7.06060167,182.79,182.78,8.4978]
[1755491363475,7.06060167,182.79,182.78,5.4678]
[1755491369084,7.06060167,182.79,182.77,5.4681]
[1755491369291,7.06060167,182.78,182.77,5.4681]
[1755491369885,11.95868913,182.78,182.77,5.4681]
[1755491370691,11.95868913,182.78,182.77,8.4981]
[1755491372692,7.06060167,182.78,182.77,8.4981]
[1755491372893,11.95849488,182.78,182.77,8.4981]
[1755491373390,7.06060167,182.78,182.77,8.4981]
[1755491388708,7.06060167,182.78,182.77,5.4681]
[1755491389610,7.06060167,182.78,182.76,8.4983]
[1755491389812,7.06060167,182.77,182.76,5.4683]
[1755491390107,7.06060167,182.77,182.73,3.03]
[1755491390313,3.14,182.75,182.74,3.03]
[1755491390502,7.06060167,182.75,182.74,3.03]
[1755491391314,7.06060167,182.75,182.74,8.499]
[1755491400916,3.14,182.75,182.74,8.499]
[1755491401921,7.03954474,182.75,182.74,8.499]
[1755491402119,3.14,182.75,182.74,8.499]
[1755491406027,7.01051664,182.75,182.74,8.499]
[1755491406428,7.01051664,182.75,182.74,5.469]
[1755491407329,3.12,182.74,182.73,5.4693]
[1755491408429,3.12,182.74,182.73,8.3093]
[1755491408826,6.99051421,182.74,182.72,5.4696]
[1755491409031,6.99070557,182.73,182.72,8.3096]
[1755491409430,3.12,182.72,182.66,2.84]
[1755491409627,6.99081306,182.71,182.66,2.84]
[1755491409825,3.12,182.7,182.68,2.84]
[1755491410030,3.12,182.69,182.68,8.3108]
[1755491411532,7.06756562,182.69,182.65,5.71266173]
[1755491411730,3.12,182.69,182.66,2.84]
[1755491411935,3.12,182.69,182.67,8.3111]
[1755491415832,3.12,182.69,182.68,5.4708]
[1755491416630,3.12,182.69,182.68,8.3108]
[1755491417939,3.12,182.69,182.68,5.4708]
[1755491419933,3.12,182.69,182.68,8.3108]
[1755491423938,3.12,182.69,182.67,5.471]
[1755491424140,3.12,182.69,182.67,3.02]
[1755491424336,3.12,182.69,182.66,2.87266173]
[1755491424537,2.94,182.75,182.67,3.02]
[1755491424739,3.93607896,182.74,182.67,3.02]
[1755491424940,2.87266173,182.79,182.72,3.02]
[1755491425146,2.94,182.73,182.72,3.02]
[1755491430049,2.94,182.73,182.67,3.02]
[1755491430252,3.93756005,182.72,182.67,3.02]
[1755491430448,2.94,182.71,182.68,5.4707]
[1755491430749,2.94,182.71,182.67,2.87266173]
[1755491431041,2.94,182.71,182.69,3.02]
[1755491431244,2.94,182.71,182.68,8.4908]
[1755491431649,2.94,182.71,182.68,5.4708]
[1755491431851,2.94,182.71,182.67,8.491]
[1755491432252,2.94,182.71,182.67,3.02]
[1755491433054,2.94,182.7,182.67,3.02]
[1755491433444,2.94,182.7,182.67,5.471]
[1755491433753,2.94,182.7,182.69,3.02]
[1755491435054,2.94,182.7,182.68,8.4908]
[1755491439363,2.94,182.7,182.69,5.4705]
[1755491439761,2.94,182.7,182.69,8.4905]
[1755491440363,2.94,182.7,182.69,5.4705]
[1755491440565,20.35150791,182.94,182.69,3.02]
[1755491440566,5.98352224,182.79,182.69,3.02]
[1755491440862,2.94,182.77,182.73,3.02]
[1755491441064,2.94,182.75,182.73,3.02]
[1755491441361,2.94,182.74,182.73,8.4893]
[1755491445170,2.94,182.74,182.73,5.4693]
[1755491445371,3.93088218,182.74,182.71,3.02]
[1755491445566,3.93088218,182.73,182.71,3.02]
[1755491445863,2.94,182.72,182.7,8.49]
[1755491446065,2.94,182.72,182.7,3.02]
[1755491449073,2.94,182.72,182.71,3.02]
[1755491449271,6.87419651,182.72,182.71,3.02]
[1755491450564,2.94,182.72,182.71,3.02]
[1755491451171,6.87515345,182.72,182.71,3.02]
[1755491454170,6.87515345,182.72,182.71,5.4699]
[1755491454372,2.97,182.78,182.72,3.07]
[1755491454579,2.97,182.76,182.72,3.07]
[1755491454777,14.18795788,182.77,182.74,3.07]
[1755491454778,6.9071548,182.75,182.74,3.07]
[1755491454978,3.9371548,182.75,182.74,3.07]
[1755491455278,3.9371548,182.75,182.74,8.539]
[1755491455877,2.97,182.78,182.77,3.07]
[1755491456080,6.90531513,182.78,182.77,3.07]
[1755491456579,6.90531513,182.78,182.77,8.5381]
[1755491458281,3.93531513,182.78,182.77,8.5381]
[1755491458482,2.97,182.85,182.74,3.07]
[1755491458674,2.97,182.83,182.74,3.07]
[1755491458875,2.97,182.81,182.79,5.4675]
[1755491459176,6.90118555,182.8,182.79,8.5375]
[1755491459379,6.90118555,182.8,182.79,3.07]
[1755491459581,6.90118555,182.8,182.79,8.5375]
[1755491460179,2.97,182.83,182.77,3.07]
[1755491460582,2.97,182.83,182.82,5.4666]
[1755491460781,2.97,182.82,182.75,3.07]
[1755491460980,2.97,182.8,182.75,3.07]
[1755491461180,3.92878416,182.79,182.75,3.07]
[1755491461382,2.97,182.78,182.75,3.07]
[1755491463087,2.97,182.78,182.74,4.49112824]
[1755491463288,2.97,182.78,182.77,3.07]
[1755491465092,2.97,182.78,182.75,3.07]
[1755491465285,3.92662143,182.77,182.7,3.07]
[1755491465480,3.92706927,182.76,182.72,3.07]
[1755491465686,2.97,182.75,182.73,3.07]
[1755491466986,2.97,182.74,182.73,3.07]
[1755491467794,2.97,182.74,182.73,8.5393]
[1755491467996,5.4679,182.78,182.73,3.07]
[1755491468294,2.97,182.75,182.73,3.07]
[1755491469084,2.97,182.75,182.74,8.5389]
[1755491470899,2.97,182.79,182.76,3.07]
[1755491471097,2.97,182.77,182.76,3.07]
[1755491471991,2.97,182.77,182.75,8.5385]
[1755491473397,2.97,182.77,182.76,5.4684]
[1755491475599,2.97,182.77,182.75,5.4686]
[1755491480403,2.97,182.77,182.75,8.5386]
[1755491485409,2.97,182.77,182.76,3.09]
[1755491486010,2.97,182.77,182.76,8.5584]
[1755491486908,5.98352224,182.85,182.78,5.4676]
[1755491487113,3.15,182.83,182.78,5.4676]
[1755491487309,3.15,182.81,182.8,3.09]
[1755491487520,7.07048119,182.81,182.8,3.09]
[1755491488315,3.92048119,182.81,182.8,5.4672]
[1755491488612,3.92048119,182.81,182.8,8.5572]
[1755491488921,7.07048119,182.81,182.8,8.5572]
[1755491489921,7.07048119,182.81,182.8,5.4672]
[1755491490724,3.15,182.81,182.8,5.4672]
[1755491491114,7.1474253,182.81,182.8,5.4672]
[1755491491717,3.9974253,182.81,182.79,5.4674]
[1755491491920,3.15,182.8,182.79,8.5574]
[1755491494327,5.466,182.85,182.8,5.467]
[1755491494622,3.15,182.81,182.8,8.557]
[1755491494925,5.466,182.85,182.81,5.4667]
[1755491495120,3.15,182.83,182.77,4.49112824]
[1755491495323,3.99771252,182.82,182.77,4.49112824]
[1755491495525,3.15,182.85,182.77,4.49112824]
[1755491495725,3.15,182.83,182.77,4.49112824]
[1755491495921,3.15,182.81,182.78,3.09]
[1755491497029,3.15,182.84,182.82,3.09]
[1755491497221,7.15389105,182.83,182.82,3.09]
[1755491498425,3.15,182.83,182.82,3.09]
[1755491498627,3.15,182.85,182.82,8.5566]
[1755491498827,4.00391587,182.84,182.83,3.09]
[1755491499531,7.15391587,182.84,182.83,3.09]
[1755491499923,3.15,182.84,182.83,8.5563]
[1755491500820,3.15,182.84,182.83,3.09]
[1755491501224,4.0025992,182.84,182.77,4.49112824]
[1755491501424,3.15,182.82,182.76,4.49112824]
[1755491501636,3.15,182.82,182.79,3.09]
[1755491502025,4.00319198,182.81,182.72,4.49112824]
[1755491502341,3.15,182.79,182.73,3.09]
[1755491502532,3.15,182.77,182.74,8.5587]
[1755491502736,3.15,182.77,182.74,3.09]